[Event "Skalica Open 2019"]
[Site "Skalica"]
[Date "2019.08.30"]
[Round "8.20"]
[White "Chan, Naruna"]
[Black "Rakovsky, Jakub"]
[Result "1-0"]
[ECO "B22"]
[WhiteElo "1950"]
[BlackElo "1765"]
[Annotator "NA"]
[PlyCount "51"]
[EventDate "2019.08.25"]
[EventType "swiss"]
[EventCountry "SVK"]
[SourceTitle "playchess.com"]
[Source "ChessBase"]
[SourceQuality "1"]
[TimeControl "40/5400+30:1800+30"]

1. e4 {[%emt 0:00:00]} c5 {[%emt 0:00:00]} 2. c3 {[%emt 0:00:00]} e5 {[%emt 0:00:44]} 3. Nf3 {[%emt 0:00:00]} Nc6 {[%emt 0:00:07]} 4. d4 {[%emt 0:02:58]} cxd4 {[%emt 0:00:15]} 5. cxd4 {[%emt 0:00:05]} exd4 {[%emt 0:00:28]} 6. Nxd4 {[%emt 0:00:26]} Nf6 {[%emt 0:00:30]} 7. Nc3 {[%emt 0:04:09]} Bb4 {[%emt 0:02:12]} 8. Nxc6 {[%emt 0:06:22]} bxc6 {[%emt 0:01:46]} 9. Bd3 {[%emt 0:00:47]} d5 {[%emt 0:01:58]} 10. O-O {[%emt 0:03:26]} Bxc3 {[%emt 0:01:11]} 11. bxc3 {[%emt 0:00:05]} dxe4 {[%emt 0:00:34]} 12. Bc2 {[%emt 0:11:04]} O-O {[%emt 0:09:07]} 13. Qxd8 {[%emt 0:07:19]} Rxd8 {[%emt 0:00:09]} 14. Bg5 {[%emt 0:00:10]} Ba6 {[%emt 0:02:25]} 15. Rfe1 {[%emt 0:09:36]} Bd3 {[%emt 0:00:35]} 16. Bb3 {[%emt 0:01:17]} Rd6 {[%emt 0:03:38]} 17. Rad1 {[%emt 0:05:48]} Rad8 {[%emt 0:08:35]} 18. Be3 {[%emt 0:06:35]} R6d7 {[%emt 0:02:15]} 19. Bd4 {[%emt 0:00:53]} Re7 {[%emt 0:17:13]} 20. Rxd3 {[%emt 0:04:23]} exd3 {[%emt 0:01:24]} 21. Rxe7 {[%emt 0:00:06]} d2 {[%emt 0:00:25]} 22. Bd1 {[%emt 0:02:27]} Nd5 {[%emt 0:00:19]} 23. Re2 {[%emt 0:08:38]} c5 {[%emt 0:00:39]} 24. Be5 {[%emt 0:00:37]} Re8 {[%emt 0:01:08]} 25. Rxd2 {[%emt 0:07:12]} Nb6 {[%emt 0:03:19]} 26. Re2 {[%emt 0:02:06]} 1-0

[Event "Skalica Open 2019"]
[Site "Skalica"]
[Date "2019.08.30"]
[Round "8.21"]
[White "Hrubsa, Marian"]
[Black "Ivanov, Alexander"]
[Result "0-1"]
[ECO "B92"]
[WhiteElo "1888"]
[BlackElo "2473"]
[Annotator "ChessBase"]
[PlyCount "120"]
[EventDate "2019.08.25"]
[EventType "swiss"]
[EventCountry "SVK"]
[SourceTitle "playchess.com"]
[Source "ChessBase"]
[SourceQuality "1"]
[TimeControl "40/5400+30:1800+30"]

1. e4 {[%emt 0:00:00]} c5 {[%emt 0:00:00]} 2. Nf3 {[%emt 0:00:00]} d6 {[%emt 0:00:00]} 3. d4 {[%emt 0:00:00]} cxd4 {[%emt 0:00:00]} 4. Nxd4 {[%emt 0:00:00]} Nf6 {[%emt 0:00:00]} 5. Nc3 {[%emt 0:00:00]} a6 {[%emt 0:00:00]} 6. Be2 {[%emt 0:00:00]} e5 {[%emt 0:00:00]} 7. Nb3 {[%emt 0:00:29]} Be7 {[%emt 0:00:31]} 8. O-O {[%emt 0:01:59]} O-O {[%emt 0:00:28]} 9. Be3 {[%emt 0:01:49]} Be6 {[%emt 0:00:10]} 10. f3 {[%emt 0:03:23]} b5 {[%emt 0:02:31]} 11. Qe1 {[%emt 0:02:51]} Qc7 {[%emt 0:04:05]} 12. a3 {[%emt 0:04:18]} Nbd7 {[%emt 0:02:09]} 13. Rd1 {[%emt 0:10:03]} Nb6 {[%emt 0:03:05]} 14. Bc1 {[%emt 0:15:31]} d5 {[%emt 0:07:57]} 15. exd5 {[%emt 0:04:47]} Nbxd5 {[%emt 0:00:24]} 16. Nxd5 {[%emt 0:00:56]} Bxd5 {[%emt 0:00:34]} 17. Bd3 {[%emt 0:01:57]} Bc4 {[%emt 0:08:29]} 18. Qg3 {[%emt 0:07:33]} Rfe8 {[%emt 0:07:06]} 19. Rfe1 {[%emt 0:06:00]} Bf8 {[%emt 0:03:41]} 20. Bg5 {[%emt 0:06:16]} Bxd3 {[%emt 0:02:38]} 21. cxd3 {[%emt 0:03:23]} Qb6+ {[%emt 0:02:55]} 22. Be3 {[%emt 0:00:56]} Qe6 {[%emt 0:01:05]} 23. Nd2 {[%emt 0:04:09]} Rad8 {[%emt 0:03:46]} 24. Bg5 {[%emt 0:03:35]} Rxd3 {[%emt 0:04:14]} 25. Bxf6 {[%emt 0:00:56]} Qxf6 {[%emt 0:00:05]} 26. Ne4 {[%emt 0:01:24]} Qb6+ {[%emt 0:00:04]} 27. Kh1 {[%emt 0:00:51]} Rxd1 {[%emt 0:00:14]} 28. Rxd1 {[%emt 0:00:12]} Rd8 {[%emt 0:00:55]} 29. Re1 {[%emt 0:04:22]} b4 {[%emt 0:12:39]} 30. Qxe5 {[%emt 0:04:32]} bxa3 {[%emt 0:00:30]} 31. bxa3 {[%emt 0:00:08]} Bxa3 {[%emt 0:00:38]} 32. f4 {[%emt 0:04:54]} Qd4 {[%emt 0:15:35]} 33. Qc7 {[%emt 0:02:13]} Bb4 {[%emt 0:01:00]} 34. Rg1 {[%emt 0:01:12]} Rf8 {[%emt 0:01:04]} 35. Ng5 {[%emt 0:01:27]} h6 {[%emt 0:00:15]} 36. Nf3 {[%emt 0:00:06]} Qd6 {[%emt 0:00:29]} 37. Qc4 {[%emt 0:01:00]} a5 {[%emt 0:00:29]} 38. Ra1 {[%emt 0:02:03]} Rd8 {[%emt 0:00:56]} 39. h3 {[%emt 0:00:37]} Qd5 {[%emt 0:02:05]} 40. Qc7 {[%emt 0:00:57]} Qd7 {[%emt 0:01:35]} 41. Qc4 {[%emt 0:32:45]} Rc8 {[%emt 0:30:32]} 42. Qe4 {[%emt 0:00:00]} Qc6 {[%emt 0:00:00]} 43. Qe2 {[%emt 0:00:00]} Qc4 {[%emt 0:00:00]} 44. Qxc4 {[%emt 0:00:00]} Rxc4 {[%emt 0:00:00]} 45. g3 {[%emt 0:00:00]} Rc3 {[%emt 0:00:00]} 46. Kg2 {[%emt 0:00:00]} Ra3 {[%emt 0:00:00]} 47. Rc1 {[%emt 0:00:00]} Ra2+ {[%emt 0:00:00]} 48. Kf1 {[%emt 0:00:00]} a4 {[%emt 0:00:00]} 49. Nd4 {[%emt 0:00:00]} Rb2 {[%emt 0:00:00]} 50. Nc6 {[%emt 0:00:00]} Bf8 {[%emt 0:00:00]} 51. Na5 {[%emt 0:00:00]} a3 {[%emt 0:00:00]} 52. Nc4 {[%emt 0:00:00]} Rb3 {[%emt 0:00:00]} 53. Kg2 {[%emt 0:00:00]} Bb4 {[%emt 0:00:00]} 54. Ra1 {[%emt 0:00:37]} Bc5 {[%emt 0:00:00]} 55. Ra2 {[%emt 0:01:05]} Kf8 {[%emt 0:00:00]} 56. g4 {[%emt 0:01:23]} Ke7 {[%emt 0:00:00]} 57. f5 {[%emt 0:00:17]} Rc3 {[%emt 0:00:00]} 58. Nd2 {[%emt 0:00:56]} Bb4 {[%emt 0:00:00]} 59. Nb1 {[%emt 0:00:42]} Rb3 {[%emt 0:00:00]} 60. Ra1 {[%emt 0:02:55]} Rb2+ {[%emt 0:00:00]} 0-1

[Event "Skalica Open 2019"]
[Site "Skalica"]
[Date "2019.08.30"]
[Round "8.22"]
[White "Petkevich, Denis"]
[Black "Polozov, Yaroslavl"]
[Result "1-0"]
[ECO "D30"]
[WhiteElo "1863"]
[BlackElo "1000"]
[Annotator "NA"]
[PlyCount "69"]
[EventDate "2019.08.25"]
[EventType "swiss"]
[EventCountry "SVK"]
[SourceTitle "playchess.com"]
[Source "ChessBase"]
[SourceQuality "1"]
[TimeControl "40/5400+30:1800+30"]

1. d4 {[%emt 0:00:00]} d5 {[%emt 0:00:00]} 2. c4 {[%emt 0:00:00]} e6 {[%emt 0:00:33]} 3. g3 {[%emt 0:00:00]} c5 {[%emt 0:06:14]} 4. Bg2 {[%emt 0:01:33]} Nf6 {[%emt 0:02:21]} 5. Nc3 {[%emt 0:01:49]} cxd4 {[%emt 0:01:20]} 6. Qxd4 {[%emt 0:00:11]} Bb4 {[%emt 0:02:03]} 7. cxd5 {[%emt 0:00:51]} Bxc3+ {[%emt 0:00:20]} 8. bxc3 {[%emt 0:00:08]} exd5 {[%emt 0:02:15]} 9. Ba3 {[%emt 0:03:41]} Nc6 {[%emt 0:01:10]} 10. Qe3+ {[%emt 0:00:05]} Ne7 {[%emt 0:04:42]} 11. Nh3 {[%emt 0:01:30]} Be6 {[%emt 0:06:20]} 12. Nf4 {[%emt 0:02:42]} Qd7 {[%emt 0:01:35]} 13. Nd3 {[%emt 0:04:24]} b6 {[%emt 0:01:23]} 14. O-O {[%emt 0:01:33]} O-O {[%emt 0:00:13]} 15. Rfd1 {[%emt 0:00:24]} Rfd8 {[%emt 0:08:34]} 16. Ne5 {[%emt 0:00:13]} Nf5 {[%emt 0:15:57]} 17. Nxd7 {[%emt 0:00:17]} Nxe3 {[%emt 0:01:07]} 18. Nxf6+ {[%emt 0:00:04]} gxf6 {[%emt 0:00:12]} 19. fxe3 {[%emt 0:00:03]} Rac8 {[%emt 0:00:38]} 20. Be7 {[%emt 0:00:04]} Rd7 {[%emt 0:00:52]} 21. Bxf6 {[%emt 0:00:07]} Rc4 {[%emt 0:00:55]} 22. Rd4 {[%emt 0:00:06]} Rxc3 {[%emt 0:01:25]} 23. e4 {[%emt 0:00:12]} Rc6 {[%emt 0:02:42]} 24. exd5 {[%emt 0:00:39]} Bxd5 {[%emt 0:00:05]} 25. Be5 {[%emt 0:00:06]} Rc5 {[%emt 0:00:52]} 26. Rad1 {[%emt 0:00:57]} Bxg2 {[%emt 0:00:46]} 27. Rxd7 {[%emt 0:00:10]} Rxe5 {[%emt 0:00:05]} 28. Kxg2 {[%emt 0:00:06]} Rxe2+ {[%emt 0:00:10]} 29. Kh3 {[%emt 0:00:17]} Rxa2 {[%emt 0:00:09]} 30. Rf1 {[%emt 0:00:07]} b5 {[%emt 0:00:51]} 31. Rb7 {[%emt 0:00:19]} a6 {[%emt 0:00:28]} 32. Rfxf7 {[%emt 0:00:04]} b4 {[%emt 0:00:28]} 33. Rg7+ {[%emt 0:00:06]} Kf8 {[%emt 0:00:17]} 34. Rxh7 {[%emt 0:00:04]} Kg8 {[%emt 0:01:39]} 35. Rhc7 {[%emt 0:00:05]} 1-0

[Event "Skalica Open 2019"]
[Site "Skalica"]
[Date "2019.08.30"]
[Round "8.23"]
[White "Fizerova, Lucie"]
[Black "Skreko, Igor"]
[Result "0-1"]
[ECO "B84"]
[WhiteElo "1563"]
[BlackElo "1725"]
[Annotator "NA"]
[PlyCount "74"]
[EventDate "2019.08.25"]
[EventType "swiss"]
[EventCountry "SVK"]
[SourceTitle "playchess.com"]
[Source "ChessBase"]
[SourceQuality "1"]
[TimeControl "40/5400+30:1800+30"]

1. e4 {[%emt 0:00:00]} c5 {[%emt 0:00:00]} 2. Nf3 {[%emt 0:00:00]} d6 {[%emt 0:00:00]} 3. d4 {[%emt 0:00:03]} cxd4 {[%emt 0:00:00]} 4. Nxd4 {[%emt 0:00:10]} Nf6 {[%emt 0:00:00]} 5. Nc3 {[%emt 0:00:24]} a6 {[%emt 0:00:00]} 6. Be2 {[%emt 0:00:20]} e6 {[%emt 0:00:00]} 7. Be3 {[%emt 0:00:44]} Be7 {[%emt 0:00:08]} 8. O-O {[%emt 0:00:31]} Qc7 {[%emt 0:00:23]} 9. Qd2 {[%emt 0:00:42]} Nc6 {[%emt 0:00:34]} 10. f4 {[%emt 0:01:03]} O-O {[%emt 0:00:32]} 11. Rad1 {[%emt 0:03:06]} Rb8 {[%emt 0:01:16]} 12. a3 {[%emt 0:07:19]} b5 {[%emt 0:02:48]} 13. Rf3 {[%emt 0:04:50]} Bb7 {[%emt 0:03:35]} 14. Bd3 {[%emt 0:02:16]} Rfc8 {[%emt 0:05:53]} 15. f5 {[%emt 0:07:26]} e5 {[%emt 0:11:34]} 16. Nxc6 {[%emt 0:03:03]} Bxc6 {[%emt 0:00:09]} 17. Rg3 {[%emt 0:04:32]} Kh8 {[%emt 0:03:35]} 18. Bg5 {[%emt 0:06:44]} a5 {[%emt 0:08:28]} 19. Ne2 {[%emt 0:14:19]} Nxe4 {[%emt 0:02:52]} 20. Bxe4 {[%emt 0:00:33]} Bxe4 {[%emt 0:00:09]} 21. f6 {[%emt 0:00:52]} gxf6 {[%emt 0:13:30]} 22. Bh4 {[%emt 0:02:18]} Rg8 {[%emt 0:04:48]} 23. Qh6 {[%emt 0:02:31]} Rg6 {[%emt 0:01:58]} 24. Rxg6 {[%emt 0:01:32]} fxg6 {[%emt 0:01:24]} 25. c3 {[%emt 0:00:36]} f5 {[%emt 0:04:13]} 26. Bxe7 {[%emt 0:02:15]} Qxe7 {[%emt 0:00:04]} 27. Qd2 {[%emt 0:00:15]} Rd8 {[%emt 0:01:56]} 28. Ng3 {[%emt 0:00:39]} Bc6 {[%emt 0:01:06]} 29. Qe2 {[%emt 0:06:26]} Qa7+ {[%emt 0:04:48]} 30. Kh1 {[%emt 0:00:36]} Qc5 {[%emt 0:00:29]} 31. Rf1 {[%emt 0:04:32]} Qc4 {[%emt 0:01:40]} 32. Qf2 {[%emt 0:00:43]} Qc5 {[%emt 0:02:31]} 33. Qe2 {[%emt 0:00:19]} f4 {[%emt 0:01:11]} 34. Ne4 {[%emt 0:00:28]} Qc4 {[%emt 0:00:15]} 35. Qxc4 {[%emt 0:00:24]} bxc4 {[%emt 0:00:02]} 36. Nd2 {[%emt 0:00:01]} d5 {[%emt 0:00:28]} 37. Rd1 {[%emt 0:00:22]} Re8 {[%emt 0:00:38]} 0-1

[Event "Skalica Open 2019"]
[Site "Skalica"]
[Date "2019.08.30"]
[Round "8.24"]
[White "Krakovsky, Peter"]
[Black "Krupnova, Anna"]
[Result "0-1"]
[ECO "A34"]
[WhiteElo "1000"]
[BlackElo "1712"]
[Annotator "NA"]
[PlyCount "64"]
[EventDate "2019.08.25"]
[EventType "swiss"]
[EventCountry "SVK"]
[SourceTitle "playchess.com"]
[Source "ChessBase"]
[SourceQuality "1"]
[TimeControl "40/5400+30:1800+30"]

1. c4 {[%emt 0:00:03]} c5 {[%emt 0:00:00]} 2. Nc3 {[%emt 0:00:03]} g6 {[%emt 0:00:00]} 3. g3 {[%emt 0:00:07]} Bg7 {[%emt 0:00:05]} 4. Bg2 {[%emt 0:00:15]} d6 {[%emt 0:00:10]} 5. d3 {[%emt 0:00:30]} Nc6 {[%emt 0:00:29]} 6. e4 {[%emt 0:00:40]} Nf6 {[%emt 0:02:14]} 7. Nf3 {[%emt 0:02:00]} O-O {[%emt 0:02:04]} 8. O-O {[%emt 0:00:45]} Ne8 {[%emt 0:00:53]} 9. Rb1 {[%emt 0:03:23]} Nc7 {[%emt 0:10:43]} 10. Nd5 {[%emt 0:06:18]} e6 {[%emt 0:06:06]} 11. Ne3 {[%emt 0:03:55]} Rb8 {[%emt 0:04:07]} 12. b3 {[%emt 0:03:11]} b5 {[%emt 0:10:04]} 13. Bb2 {[%emt 0:00:53]} Nd4 {[%emt 0:07:33]} 14. Nxd4 {[%emt 0:04:33]} cxd4 {[%emt 0:00:37]} 15. Nc2 {[%emt 0:01:19]} e5 {[%emt 0:02:01]} 16. f4 {[%emt 0:00:35]} f5 {[%emt 0:05:50]} 17. Qe1 {[%emt 0:05:19]} bxc4 {[%emt 0:10:56]} 18. bxc4 {[%emt 0:02:26]} Na6 {[%emt 0:03:49]} 19. Ba3 {[%emt 0:03:22]} Rxb1 {[%emt 0:03:00]} 20. Qxb1 {[%emt 0:00:14]} fxe4 {[%emt 0:04:25]} 21. Bxe4 {[%emt 0:02:23]} exf4 {[%emt 0:01:50]} 22. gxf4 {[%emt 0:01:25]} Nc5 {[%emt 0:03:53]} 23. Bd5+ {[%emt 0:04:33]} Kh8 {[%emt 0:01:23]} 24. Qd1 {[%emt 0:00:26]} Rxf4 {[%emt 0:03:33]} 25. Rxf4 {[%emt 0:05:54]} Qg5+ {[%emt 0:00:18]} 26. Kh1 {[%emt 0:00:40]} Qxf4 {[%emt 0:00:07]} 27. Qe2 {[%emt 0:00:25]} Be5 {[%emt 0:01:06]} 28. Ne1 {[%emt 0:04:25]} Bg4 {[%emt 0:06:54]} 29. Bf3 {[%emt 0:00:47]} Nxd3 {[%emt 0:02:37]} 30. Bxg4 {[%emt 0:05:13]} Nxe1 {[%emt 0:06:38]} 31. Bb4 {[%emt 0:00:13]} d3 {[%emt 0:00:52]} 32. Qd2 {[%emt 0:01:18]} Qf1# {[%emt 0:00:10]} 0-1

[Event "Skalica Open 2019"]
[Site "Skalica"]
[Date "2019.08.31"]
[Round "9.9"]
[White "Danada, Tomas"]
[Black "Matejovic, Juraj"]
[Result "1/2-1/2"]
[ECO "B33"]
[WhiteElo "2266"]
[BlackElo "2237"]
[Annotator "ChessBase"]
[PlyCount "75"]
[EventDate "2019.08.25"]
[EventType "swiss"]
[EventCountry "SVK"]
[SourceTitle "playchess.com"]
[Source "ChessBase"]
[SourceQuality "1"]
[TimeControl "40/5400+30:1800+30"]

1. e4 {[%emt 0:08:59]} c5 {[%emt 0:00:37]} 2. Nf3 {[%emt 0:00:04]} e6 {[%emt 0:00:19]} 3. d4 {[%emt 0:00:04]} cxd4 {[%emt 0:00:29]} 4. Nxd4 {[%emt 0:00:01]} Nc6 {[%emt 0:02:09]} 5. Nc3 {[%emt 0:00:11]} Nf6 {[%emt 0:00:34]} 6. Ndb5 {[%emt 0:00:39]} d6 {[%emt 0:00:30]} 7. Bf4 {[%emt 0:00:14]} e5 {[%emt 0:00:13]} 8. Bg5 {[%emt 0:00:04]} a6 {[%emt 0:01:36]} 9. Na3 {[%emt 0:00:02]} Be6 {[%emt 0:00:17]} 10. Nc4 {[%emt 0:01:48]} Rc8 {[%emt 0:00:42]} 11. Ne3 {[%emt 0:01:15]} Be7 {[%emt 0:01:50]} 12. Bxf6 {[%emt 0:07:40]} Bxf6 {[%emt 0:00:18]} 13. Ncd5 {[%emt 0:00:13]} Bg5 {[%emt 0:18:54]} 14. c3 {[%emt 0:05:49]} O-O {[%emt 0:27:33]} 15. Bc4 {[%emt 0:04:07]} g6 {[%emt 0:13:33]} 16. O-O {[%emt 0:03:50]} Kg7 {[%emt 0:01:11]} 17. Qe2 {[%emt 0:08:00]} Na5 {[%emt 0:10:32]} 18. Bd3 {[%emt 0:01:51]} f5 {[%emt 0:02:35]} 19. exf5 {[%emt 0:00:43]} gxf5 {[%emt 0:00:19]} 20. f4 {[%emt 0:02:31]} Bh6 {[%emt 0:01:37]} 21. Nxf5+ {[%emt 0:04:28]} Bxf5 {[%emt 0:01:05]} 22. Bxf5 {[%emt 0:00:27]} Rc5 {[%emt 0:00:25]} 23. Be6 {[%emt 0:04:01]} Nc4 {[%emt 0:01:01]} 24. b3 {[%emt 0:03:53]} Rxd5 {[%emt 0:01:12]} 25. bxc4 {[%emt 0:02:56]} Rc5 {[%emt 0:00:55]} 26. Rab1 {[%emt 0:01:12]} exf4 {[%emt 0:01:02]} 27. Rxb7+ {[%emt 0:02:25]} Rc7 {[%emt 0:00:09]} 28. Rfb1 {[%emt 0:02:00]} f3 {[%emt 0:01:56]} 29. gxf3 {[%emt 0:03:37]} Kh8 {[%emt 0:05:48]} 30. Rxc7 {[%emt 0:03:19]} Qxc7 {[%emt 0:00:06]} 31. Kh1 {[%emt 0:05:02]} Qg7 {[%emt 0:00:56]} 32. Qd3 {[%emt 0:02:16]} Bf4 {[%emt 0:00:28]} 33. Bd5 {[%emt 0:02:51]} Qh6 {[%emt 0:01:19]} 34. Qe2 {[%emt 0:00:31]} Qf6 {[%emt 0:01:19]} 35. Qg2 {[%emt 0:05:46]} Qxc3 {[%emt 0:02:20]} 36. Rg1 {[%emt 0:00:25]} h6 {[%emt 0:00:05]} 37. Qg6 {[%emt 0:07:53]} Qb2 {[%emt 0:00:16]} 38. Qg2 {[%emt 0:00:31]} 1/2-1/2

[Event "Skalica Open 2019"]
[Site "Skalica"]
[Date "2019.08.31"]
[Round "9.10"]
[White "Havelka, Ondrej"]
[Black "Karas, Marek"]
[Result "1/2-1/2"]
[ECO "E56"]
[WhiteElo "2112"]
[BlackElo "2233"]
[Annotator "NA"]
[PlyCount "80"]
[EventDate "2019.08.25"]
[EventType "swiss"]
[EventCountry "SVK"]
[SourceTitle "playchess.com"]
[Source "ChessBase"]
[SourceQuality "1"]
[TimeControl "40/5400+30:1800+30"]

1. d4 {[%emt 0:00:00]} Nf6 {[%emt 0:08:48]} 2. c4 {[%emt 0:00:00]} e6 {[%emt 0:00:43]} 3. Nc3 {[%emt 0:00:00]} Bb4 {[%emt 0:00:06]} 4. e3 {[%emt 0:00:00]} O-O {[%emt 0:00:09]} 5. Bd3 {[%emt 0:00:00]} d5 {[%emt 0:00:30]} 6. Nf3 {[%emt 0:00:00]} c5 {[%emt 0:00:40]} 7. O-O {[%emt 0:00:10]} Nc6 {[%emt 0:00:35]} 8. cxd5 {[%emt 0:00:32]} exd5 {[%emt 0:00:36]} 9. dxc5 {[%emt 0:00:05]} Bxc5 {[%emt 0:01:47]} 10. a3 {[%emt 0:00:05]} Bg4 {[%emt 0:02:35]} 11. b4 {[%emt 0:02:29] E56: Nimzo-Indian: Rubinstein: Main Line: 7...Nc6} (11. h3 Bh5 12. b4 Bd6 13. Bb2 Ne5 14. Be2 Nc4 15. Ra2 a5 16. Ba1 axb4 17. axb4 Rxa2 18. Nxa2 Be7 {½-½ (66) Rybko (2403)-Tatar (2501) playchess.com INT 2008}) 11... Bd6 {[%emt 0:04:33]} 12. Bb2 {[%emt 0:03:52]} Ne5 {[%emt 0:04:19]} 13. Be2 {[%emt 0:01:30]} Nc4 {[%emt 0:03:09]} 14. Qc2 $146 {[%emt 0:09:52]} ({Predecessor:} 14. Bxc4 dxc4 15. Qd4 Bxf3 16. gxf3 Rc8 17. Rad1 Bb8 18. Qh4 Qb6 {1-0 (35) Csomos,R (2196)-Kerekes,A (2136) Hungary 2011}) 14... Nxb2 {[%emt 0:04:37]} 15. Qxb2 {[%emt 0:02:51]} Rc8 {[%emt 0:02:59]} 16. Rfd1 {[%emt 0:01:26]} Bxf3 {[%emt 0:03:15]} 17. Bxf3 {[%emt 0:00:02]} Bxh2+ {[%emt 0:05:20]} 18. Kxh2 {[%emt 0:01:10]} Qc7+ {[%emt 0:00:10] Double Attack} 19. Kg1 {[%emt 0:01:26]} Qxc3 {[%emt 0:00:07]} 20. Qxc3 {[%emt 0:00:02]} Rxc3 {[%emt 0:00:08]} 21. Bxd5 {[%emt 0:00:40]} b6 {[%emt 0:00:24]} 22. Bf3 {[%emt 0:00:58]} Rfc8 {[%emt 0:03:27]} 23. a4 {[%emt 0:01:05]} R3c4 {[%emt 0:03:05]} 24. b5 {[%emt 0:00:29]} h5 $11 {[%emt 0:01:46]} 25. a5 {[%emt 0:00:30]} R8c5 {[%emt 0:02:43]} 26. Bc6 {[%emt 0:00:48]} g6 {[%emt 0:03:51]} 27. a6 {[%emt 0:01:33]} Kg7 {[%emt 0:02:33]} 28. Rd8 {[%emt 0:02:04]} Ng4 29. Rf1 {[%emt 0:00:20]} Ne5 {[%emt 0:02:22]} 30. Ra8 {[%emt 0:00:43]} Nxc6 {[%emt 0:00:21]} 31. bxc6 {[%emt 0:00:02]} Rxc6 {[%emt 0:00:21]} 32. Rxa7 {[%emt 0:00:02]} Ra4 {[%emt 0:00:14]} 33. Rb1 {[%emt 0:02:09]} Ra2 {[%emt 0:03:12]} 34. Ra8 {[%emt 0:00:30]} Rcc2 {[%emt 0:00:42]} 35. Rf1 {[%emt 0:00:10]} Rcb2 {[%emt 0:00:47]} 36. a7 {[%emt 0:00:30]} h4 {[%emt 0:02:10]} 37. Kh2 {[%emt 0:00:58]} g5 {[%emt 0:00:59]} 38. Kh3 {[%emt 0:00:37]} Ra4 {[%emt 0:01:26]} 39. g3 {[%emt 0:00:45]} Rba2 {[%emt 0:00:55]} 40. gxh4 {[%emt 0:01:08]} gxh4 {[%emt 0:00:45]} 1/2-1/2

[Event "Skalica Open 2019"]
[Site "Skalica"]
[Date "2019.08.31"]
[Round "9.11"]
[White "Bilczewski, Kacper"]
[Black "Kalisky, Vladimir"]
[Result "1-0"]
[ECO "C54"]
[WhiteElo "2116"]
[BlackElo "2179"]
[Annotator "ChessBase"]
[PlyCount "117"]
[EventDate "2019.08.25"]
[EventType "swiss"]
[EventCountry "SVK"]
[SourceTitle "playchess.com"]
[Source "ChessBase"]
[SourceQuality "1"]
[TimeControl "40/5400+30:1800+30"]

1. e4 {[%emt 0:00:00]} e5 {[%emt 0:00:00]} 2. Nf3 {[%emt 0:00:00]} Nc6 {[%emt 0:00:00]} 3. Bc4 {[%emt 0:03:14]} Bc5 {[%emt 0:00:21]} 4. c3 {[%emt 0:00:04]} Nf6 {[%emt 0:00:06]} 5. d3 {[%emt 0:00:03]} d6 {[%emt 0:00:35]} 6. O-O {[%emt 0:00:05]} h6 {[%emt 0:02:52]} 7. b4 {[%emt 0:00:33]} Bb6 {[%emt 0:00:06]} 8. a4 {[%emt 0:00:02]} a5 {[%emt 0:00:36]} 9. b5 {[%emt 0:00:07]} Ne7 {[%emt 0:00:07]} 10. Bb3 {[%emt 0:02:28]} O-O {[%emt 0:03:21]} 11. Nbd2 {[%emt 0:00:03]} c6 {[%emt 0:01:07]} 12. d4 {[%emt 0:14:22]} exd4 {[%emt 0:07:39]} 13. cxd4 {[%emt 0:00:04]} d5 {[%emt 0:00:13]} 14. e5 {[%emt 0:00:04]} Ne4 {[%emt 0:00:07]} 15. Qe2 {[%emt 0:03:44]} Bf5 {[%emt 0:09:19]} 16. Ba3 {[%emt 0:02:24]} Nxd2 {[%emt 0:13:41]} 17. Qxd2 {[%emt 0:00:21]} Qd7 {[%emt 0:08:53]} 18. bxc6 {[%emt 0:04:51]} bxc6 {[%emt 0:00:11]} 19. Rac1 {[%emt 0:00:03]} Rfc8 {[%emt 0:00:11]} 20. Rfd1 {[%emt 0:03:04]} Ng6 {[%emt 0:03:44]} 21. Bc5 {[%emt 0:16:19]} Bd8 {[%emt 0:00:10]} 22. Ba2 {[%emt 0:02:23]} Bg4 {[%emt 0:09:29]} 23. Rc3 {[%emt 0:01:39]} Bg5 {[%emt 0:01:29]} 24. Qc2 {[%emt 0:02:34]} Bf5 {[%emt 0:00:28]} 25. Qe2 {[%emt 0:02:44]} Nf4 {[%emt 0:01:02]} 26. Qf1 {[%emt 0:00:10]} Rcb8 {[%emt 0:04:55]} 27. Nxg5 {[%emt 0:00:33]} hxg5 {[%emt 0:00:02]} 28. Ba3 {[%emt 0:00:10]} Rb6 {[%emt 0:01:14]} 29. Qe1 {[%emt 0:04:49]} Rab8 {[%emt 0:00:50]} 30. Rg3 {[%emt 0:00:33]} Rb2 {[%emt 0:01:24]} 31. Bxb2 {[%emt 0:01:56]} Rxb2 {[%emt 0:00:03]} 32. Rd2 {[%emt 0:12:02]} Qb7 {[%emt 0:00:12]} 33. Qc1 {[%emt 0:01:21]} Ne2+ {[%emt 0:02:30]} 34. Rxe2 {[%emt 0:00:05]} Rxe2 {[%emt 0:00:06]} 35. Rb3 {[%emt 0:02:30]} Qa7 {[%emt 0:19:05]} 36. Rb2 {[%emt 0:04:50]} Rxb2 {[%emt 0:08:52]} 37. Qxb2 {[%emt 0:00:06]} g6 {[%emt 0:00:51]} 38. h3 {[%emt 0:01:22]} Kg7 {[%emt 0:00:35]} 39. Qc3 {[%emt 0:01:49]} Qb6 {[%emt 0:00:21]} 40. Bb3 {[%emt 0:00:07]} Qb4 {[%emt 0:02:23]} 41. Qxb4 {[%emt 0:31:39]} axb4 {[%emt 0:30:16]} 42. Kf1 {[%emt 0:00:11]} Bd3+ {[%emt 0:00:28]} 43. Ke1 {[%emt 0:00:10]} Kf8 {[%emt 0:00:45]} 44. Kd2 {[%emt 0:00:12]} Bf1 {[%emt 0:00:20]} 45. a5 {[%emt 0:00:51]} Ke7 {[%emt 0:00:00]} 46. Bd1 {[%emt 0:00:00]} Kd8 {[%emt 0:00:00]} 47. Kc2 {[%emt 0:00:00]} Bc4 {[%emt 0:00:00]} 48. Bg4 {[%emt 0:00:00]} Kc7 {[%emt 0:00:00]} 49. g3 {[%emt 0:00:00]} c5 {[%emt 0:00:00]} 50. dxc5 {[%emt 0:00:00]} Kc6 {[%emt 0:00:00]} 51. e6 {[%emt 0:00:00]} fxe6 {[%emt 0:00:00]} 52. Bxe6 {[%emt 0:00:00]} Kxc5 {[%emt 0:00:00]} 53. Bf7 {[%emt 0:00:00]} b3+ {[%emt 0:00:00]} 54. Kb2 {[%emt 0:00:00]} Kb5 {[%emt 0:00:00]} 55. Bxg6 {[%emt 0:00:00]} Kxa5 {[%emt 0:00:00]} 56. h4 {[%emt 0:00:00]} gxh4 {[%emt 0:04:26]} 57. gxh4 {[%emt 0:00:00]} Be2 {[%emt 0:00:59]} 58. Kxb3 {[%emt 0:00:00]} Kb5 {[%emt 0:00:15]} 59. h5 {[%emt 0:00:00]} 1-0